[Event "Swiss National League-A 2024"]
[Site "Luzern"]
[Date "2024.10.13"]
[Round "9.25"]
[White "Edouard, Romain"]
[Black "Aranovitch, Emiliano"]
[Result "1-0"]
[ECO "B66"]
[WhiteElo "2540"]
[BlackElo "2318"]
[Annotator "TA"]
[PlyCount "49"]
[EventDate "2023.10.03"]
[EventType "team-tourn"]
[EventCountry "SUI"]
[SourceTitle "playchess.com"]
[Source "ChessBase"]
[SourceQuality "1"]
[TimeControl "40/8400+30:20/3000+30:900+30"]

{[%evp 20,49,61,43,55,64,59,50,133,137,121,118,132,121,125,140,127,130,161,142,147,142,172,171,167,164,177,178,175,185,239,183]} 1. e4 {[%emt 0:40:02]} c5 {[%emt 0:40:51]} 2. Nf3 {[%emt 0:00:04]} d6 {[%emt 0:00:33]} 3. d4 {[%emt 0:00:04]} cxd4 {[%emt 0:00:05]} 4. Nxd4 {[%emt 0:00:03]} Nf6 {[%emt 0:00:06]} 5. Nc3 {[%emt 0:00:03]} Nc6 {[%emt 0:00:25]} 6. Bg5 {[%emt 0:00:06]} e6 {[%emt 0:00:09]} 7. Qd2 {[%emt 0:00:28]} Be7 {[%emt 0:00:08]} 8. O-O-O {[%emt 0:00:07]} Nxd4 {[%emt 0:00:36]} 9. Qxd4 {[%emt 0:00:03]} O-O {[%emt 0:00:07]} 10. f4 {[%emt 0:00:11]} a6 {[%emt 0:00:55]} 11. Kb1 {[%emt 0:00:38] White has more active pieces.} b5 {[%emt 0:34:17]} 12. Bxf6 {[%emt 0:07:25]} Bxf6 {[%emt 0:02:47]} 13. e5 {[%emt 0:02:02]} dxe5 {[%emt 0:29:52]} (13... Bh4 $14) 14. Qe4 $16 {[%emt 0:00:11]} Qb6 {[%emt 0:05:31] And now ...Bb7 would win.} (14... Bd7 15. Qb7 (15. fxe5 b4 $16)) 15. Qxa8 {[%emt 0:01:03]} Bb7 {[%emt 0:00:32] [#]} 16. Rd6 $3 {[%emt 0:00:03][%mdl 512]} Qxd6 {[%emt 0:00:25]} 17. Qxb7 {[%emt 0:00:03] Bd3 is the strong threat.} b4 {[%emt 0:00:21] [#]} 18. Ne2 {[%emt 0:00:31]} (18. Qxa6 $6 Qxa6 19. Bxa6 bxc3 $14) (18. fxe5 Qxe5 19. Qe4 (19. Qxb4 $2 Qe1+) 19... bxc3 20. Qxe5 Bxe5 $19) 18... Qd1+ {[%emt 0:02:12]} 19. Nc1 {[%emt 0:00:04] White is clearly better.} exf4 {[%emt 0:02:31]} 20. Qe4 {[%emt 0:29:23]} (20. Qxa6 $6 Rd8 21. Qe2 Qd4 $11) 20... Rd8 {[%emt 0:02:56] [#] Dodges Bd3} 21. g3 $1 {[%emt 0:12:52]} (21. Qxb4 $2 Bd4 22. a3 (22. Bxa6 $2 Qxh1 23. Qd2 g5 $19) 22... g6 $19 (22... Be3 $2 23. Ka2 $19)) (21. Qxf4 $2 Rc8 22. c4 (22. Qxb4 $2 Qxc2+ 23. Ka1 Qxc1#) 22... bxc3 23. bxc3 e5 $19 (23... Bxc3 24. Bxa6 Qxh1 25. Bxc8 $16) (23... Rxc3 24. Qb8+ Bd8 25. Qb2 $11)) 21... fxg3 {[%emt 0:10:09]} 22. Bd3 {[%emt 0:01:53]} (22. Qxb4 $2 {perishes.} Qxc1+ (22... gxh2 23. Qf4 $17) 23. Kxc1 Bg5+ $19) (22. Bxa6 Qd6 $16) 22... Qd2 {[%emt 0:00:19]} 23. Qxh7+ {[%emt 0:00:33]} ({Weaker is} 23. Bxa6 gxh2 24. Be2 Qd6 $15) 23... Kf8 {[%emt 0:00:08] Strongly threatening ...g2.} 24. hxg3 {[%emt 0:00:08][%cal Oh7e4]} a5 {[%emt 0:00:29]} (24... Qe3 {was necessary.}) 25. Qe4 {[%emt 0:02:22] Black got outplayed after the opening.   Weighted Error Value: White=0.02 (flawless) /Black=0.19 (very precise) .  Mistake:       	---       	Black=2      OK:         	White=7     	Black=4      Best:        	White=3     	---        Brilliant:      	White=1     	---} 1-0

[Event "Swiss National League-A 2024"]
[Site "Luzern"]
[Date "2024.10.13"]
[Round "9.26"]
[White "Cereda, Loris"]
[Black "Riff, Jean-Noel"]
[Result "0-1"]
[ECO "C56"]
[WhiteElo "2329"]
[BlackElo "2406"]
[Annotator "TA"]
[PlyCount "56"]
[EventDate "2023.10.03"]
[EventType "team-tourn"]
[EventCountry "SUI"]
[SourceTitle "playchess.com"]
[Source "ChessBase"]
[SourceQuality "1"]
[TimeControl "40/8400+30:20/3000+30:900+30"]

{[%evp 13,56,-61,-70,-59,-64,-437,-439,-541,-525,-560,-568,-564,-553,-553,-568,-558,-566,-564,-544,-567,-555,-597,-585,-598,-579,-582,-584,-785,-792,-774,-791,-833,-837,-1056,-1056,-1087,-1075,-1309,-1289,-29974,-29975,-29969,-29972,-29965,-2284]} 1. e4 {[%emt 0:40:24]} e5 {[%emt 0:42:34]} 2. Nf3 {[%emt 0:00:08]} Nc6 {[%emt 0:00:03]} 3. Bc4 {[%emt 0:00:08]} Nf6 {[%emt 0:00:18]} 4. d4 {[%emt 0:01:17]} exd4 {[%emt 0:01:04]} 5. O-O {[%emt 0:00:09]} Nxe4 {[%emt 0:00:34]} 6. Re1 {[%emt 0:02:03]} d5 {[%emt 0:00:06]} 7. Nc3 {[%emt 0:00:08]} dxc3 {[%emt 0:08:46]} 8. Bxd5 {[%emt 0:05:36]} Be6 {[%emt 0:03:43]} 9. Rxe4 $2 {[%emt 0:01:25][%mdl 8192] [#]} (9. Bxe4 $15 Qxd1 10. Rxd1) 9... Ne7 $1 $19 {[%emt 0:02:32]} 10. Bg5 {[%emt 0:11:32] Schwarz steht klar auf Gewinn.} (10. Rxe6 fxe6 11. Bd2 Qxd5) 10... Qxd5 {[%emt 0:06:51]} 11. Rd4 {[%emt 0:06:52] [#]} cxb2 $1 {[%emt 0:02:04]} 12. Rxd5 {[%emt 0:16:26]} bxa1=Q {[%emt 0:00:11]} (12... Bxd5 13. Rb1 $14) 13. Qxa1 {[%emt 0:00:08]} Bxd5 {[%emt 0:00:14]} 14. Qd4 {[%emt 0:08:29]} f6 {[%emt 0:11:31]} (14... Bxa2 $2 15. Qa4+ Nc6 16. Qxa2 $19) 15. Bf4 {[%emt 0:08:37]} Kf7 {[%emt 0:01:52]} (15... Bxa2 $2 16. Qa4+ Nc6 17. Qxa2 $19) 16. c4 {[%emt 0:07:09]} Be6 {[%emt 0:00:17]} 17. Bxc7 {[%emt 0:06:17]} Rc8 {[%emt 0:00:56]} 18. Qf4 {[%emt 0:01:48] Droht stark Ng5+.} Nf5 {[%emt 0:00:30] ...g5 ist eine echte Drohung.} 19. g4 {[%emt 0:04:04]} g5 {[%emt 0:00:07]} 20. Qd2 {[%emt 0:04:48]} Rxc7 {[%emt 0:00:42]} 21. gxf5 {[%emt 0:00:26]} Bxf5 {[%emt 0:00:23][%cal Oc7d7] Und jetzt ...Rd7! wäre schön.} 22. Qa5 {[%emt 0:02:03]} Rc5 {[%emt 0:00:01]} (22... Rxc4 $2 {verliert.} 23. Qxf5 Rc1+ 24. Kg2 $16) 23. Qxa7 {[%emt 0:02:16]} Be4 {[%emt 0:01:30]} 24. Nd2 {[%emt 0:03:35]} Bc6 {[%emt 0:00:15] ...Re5 wäre nun fies.} 25. Nb3 {[%emt 0:01:46]} Re5 {[%emt 0:00:16]} 26. Kf1 {[%emt 0:00:33] Es drohte Re1+} Bb4 {[%emt 0:00:11][%csl Gb4][%cal Re5e1] Schwarz setzt Matt.} 27. f4 {[%emt 0:01:36]} Rf5 {[%emt 0:00:48]} 28. Nd4 {[%emt 0:00:37]} Bc5 {[%emt 0:00:13] Weiß wurde aus der Eröffnung heraus überfahren.   Gewichteter Fehlerwert: Weiß=0.58/Schwarz=0.04 (makellos) .  Verlustzug:     	Weiß=1     	---        Ungenau:       	Weiß=1     	---        OK:         	Weiß=7     	Schwarz=8     Bester:       	---       	Schwarz=1     Stark:        	---       	Schwarz=1} (28... Rxf4+ $142 29. Kg1 Be1 (29... Rg4+ $2 30. Kf1 $19) 30. Ne2 Bf2+ (30... Rxc4 $2 31. Qa3 $19) 31. Qxf2 Rxf2 32. Kxf2 Ra8 33. Nc1 Ra3 34. c5 Rc3 35. Ne2 Rxc5 36. Ke1 Rc2 37. a3 Ra2 38. Ng3 Rxh2 (38... Rxa3 $2 39. Nf1 $19) 39. Nf5 Rh3 40. Nd4 Rxa3 41. Nf5 Ra5 42. Nd4 g4 43. Kf2 Ra3 44. Ne2 Ra2 45. Ke1 Rxe2+ 46. Kxe2 g3 47. Ke3 g2 48. Kf2 b5 49. Kg1 b4 50. Kh2 b3 51. Kg1 b2 52. Kf2 b1=Q (52... b1=B {ist ein Selbstmatt.} 53. Kg1 f5 54. Kf2 Kg6 55. Kg1 Kg5 56. Kh2 Kf4 57. Kg1 Kf3 58. Kh2 Kf2 59. Kh3 g1=Q 60. Kh4 Qg4#) 53. Kg3 g1=Q+ (53... g1=B {wird mattgesetzt.} 54. Kh4 Qe4+ 55. Kh5 Qf5+ 56. Kh6 Qh3#) 54. Kh4 Qh2+ 55. Kg4 h5#) 0-1

[Event "Swiss National League-A 2024"]
[Site "Luzern"]
[Date "2024.10.13"]
[Round "9.27"]
[White "Burri, Quentin"]
[Black "Mantovani, Renzo"]
[Result "1/2-1/2"]
[ECO "B63"]
[WhiteElo "2418"]
[BlackElo "2198"]
[Annotator "TA"]
[PlyCount "52"]
[EventDate "2023.10.03"]
[EventType "team-tourn"]
[EventCountry "SUI"]
[SourceTitle "playchess.com"]
[Source "ChessBase"]
[SourceQuality "1"]
[TimeControl "40/8400+30:20/3000+30:900+30"]

{[%evp 22,52,15,0,62,-12,-18,-19,-4,-6,-3,-7,-7,-14,4,-8,-35,-23,87,95,120,0,0,0,0,0,0,0,0,0,0,0,0]} 1. e4 {[%emt 0:40:03]} c5 {[%emt 0:40:58]} 2. Nf3 {[%emt 0:00:09]} d6 {[%emt 0:00:05]} 3. d4 {[%emt 0:00:09]} cxd4 {[%emt 0:00:07]} 4. Nxd4 {[%emt 0:00:07]} Nf6 {[%emt 0:00:07]} 5. Nc3 {[%emt 0:00:06]} Nc6 {[%emt 0:00:13]} 6. Bg5 {[%emt 0:00:28]} e6 {[%emt 0:00:21]} 7. Qd2 {[%emt 0:00:18]} Be7 {[%emt 0:00:21]} 8. O-O-O {[%emt 0:00:41]} O-O {[%emt 0:00:17]} 9. h4 {[%emt 0:00:37]} a6 {[%emt 0:01:10]} 10. f3 {[%emt 0:02:53]} Nxd4 {[%emt 0:09:02]} 11. Qxd4 {[%emt 0:00:04]} b5 {[%emt 0:00:06]} 12. Kb1 {[%emt 0:02:25]} Rb8 {[%emt 0:05:14]} (12... Bb7 $11) 13. Qd2 {[%emt 0:04:06] White is much more active.} (13. e5 $14 dxe5 14. Qxe5) 13... b4 $11 {[%emt 0:02:05]} 14. Ne2 {[%emt 0:00:20]} a5 $1 {[%emt 0:05:56]} 15. Nd4 {[%emt 0:02:02]} Bd7 {[%emt 0:01:05] Repels Nc6} 16. g4 {[%emt 0:00:48]} Qc7 {[%emt 0:15:02]} 17. Bd3 $1 {[%emt 0:04:59]} Rfc8 {[%emt 0:09:39]} 18. h5 {[%emt 0:08:18]} a4 {[%emt 0:02:53]} 19. Be3 {[%emt 0:02:21]} Be8 {[%emt 0:04:37]} (19... e5 $11 {keeps the balance.} 20. Nf5 Bxf5 21. gxf5 d5) 20. Ba6 {[%emt 0:17:57]} Rd8 {[%emt 0:04:44]} 21. Qe2 {[%emt 0:00:28]} (21. g5 $16 Nd7 22. g6) 21... Nd7 {[%emt 0:08:32] The position is equal.} 22. Nb5 {[%emt 0:03:54]} Qc6 {[%emt 0:01:22]} 23. Nd4 {[%emt 0:00:06]} Qc7 {[%emt 0:00:33]} 24. Nb5 {[%emt 0:00:46]} Qc6 {[%emt 0:00:24]} 25. Nd4 {[%emt 0:00:04]} Qc7 {[%emt 0:00:10]} 26. Nb5 {[%emt 0:01:14]} Qc6 {[%emt 0:00:09] Weighted Error Value: White=0.16 (very precise) /Black=0.16 (very precise) .  Mistake:       	White=2     	Black=1      OK:         	White=5     	Black=10     Best:        	White=1     	Black=1      Strong:       	White=1     	Black=1} 1/2-1/2

[Event "Swiss National League-A 2024"]
[Site "Luzern"]
[Date "2024.10.13"]
[Round "9.28"]
[White "Sedina, Elena"]
[Black "Sokolov, Andrei"]
[Result "1/2-1/2"]
[ECO "B52"]
[WhiteElo "2192"]
[BlackElo "2516"]
[Annotator "TA"]
[PlyCount "60"]
[EventDate "2023.10.03"]
[EventType "team-tourn"]
[EventCountry "SUI"]
[SourceTitle "playchess.com"]
[Source "ChessBase"]
[SourceQuality "1"]
[TimeControl "40/8400+30:20/3000+30:900+30"]

{[%evp 24,60,-6,-7,-10,-13,-8,-13,-7,-7,0,0,0,-3,-6,-6,-6,-10,6,0,0,0,6,0,0,0,12,12,21,14,16,5,8,0,0,0,0,0,0]} 1. e4 {[%emt 0:40:44]} c5 {[%emt 0:40:12]} 2. Nf3 {[%emt 0:00:19]} d6 {[%emt 0:01:05]} 3. Bb5+ {[%emt 0:00:54]} Bd7 {[%emt 0:00:21]} 4. Bxd7+ {[%emt 0:00:35]} Qxd7 {[%emt 0:00:10]} 5. O-O {[%emt 0:02:11]} Nc6 {[%emt 0:03:00]} 6. c3 {[%emt 0:02:46]} Nf6 {[%emt 0:02:08]} 7. Qe2 {[%emt 0:05:47]} e6 {[%emt 0:02:49]} 8. d4 {[%emt 0:01:56]} cxd4 {[%emt 0:00:22]} 9. cxd4 {[%emt 0:00:04]} d5 {[%emt 0:00:36]} 10. e5 {[%emt 0:00:57]} Ne4 {[%emt 0:03:22]} 11. Nbd2 {[%emt 0:06:11]} Nxd2 {[%emt 0:02:02]} 12. Bxd2 {[%emt 0:00:06]} Be7 {[%emt 0:01:56]} 13. Rac1 {[%emt 0:19:21] The position is equal.} O-O {[%emt 0:00:54]} 14. Rfd1 {[%emt 0:05:41]} Rac8 {[%emt 0:00:34]} 15. Rc3 {[%emt 0:05:18]} Nb8 {[%emt 0:02:25]} 16. Rdc1 {[%emt 0:01:33]} Rxc3 {[%emt 0:02:50]} 17. Rxc3 {[%emt 0:00:08]} Rc8 {[%emt 0:00:20]} 18. h4 {[%emt 0:05:11]} Rxc3 {[%emt 0:01:32]} 19. Bxc3 {[%emt 0:00:09]} Nc6 {[%emt 0:00:31]} 20. g3 {[%emt 0:01:35]} f6 {[%emt 0:06:41]} 21. exf6 {[%emt 0:19:47]} Bxf6 {[%emt 0:01:31]} 22. Kg2 {[%emt 0:03:15]} a6 {[%emt 0:00:53]} 23. Qd3 {[%emt 0:01:31]} Qf7 {[%emt 0:05:24]} 24. Bd2 {[%emt 0:02:23]} e5 {[%emt 0:06:15]} 25. dxe5 {[%emt 0:00:12]} Nxe5 {[%emt 0:00:06]} 26. Nxe5 {[%emt 0:00:12]} Bxe5 $11 {[%emt 0:00:09] KQB-KQB} 27. b3 {[%emt 0:03:18]} h5 {[%emt 0:01:41]} 28. Qf3 {[%emt 0:04:55]} Qxf3+ {[%emt 0:01:14]} 29. Kxf3 {[%emt 0:00:03]} Kf7 {[%emt 0:00:30]} 30. Bf4 {[%emt 0:01:15]} Bf6 {[%emt 0:00:41] An uneventful encounter.   Weighted Error Value: White=0.03 (flawless) /Black=0.02 (flawless) .  OK:         	White=1     	Black=8} 1/2-1/2

[Event "Swiss National League-A 2024"]
[Site "Luzern"]
[Date "2024.10.13"]
[Round "9.29"]
[White "Benitah, Yohan"]
[Black "Patuzzo, Fabrizio"]
[Result "1-0"]
[ECO "D06"]
[WhiteElo "2327"]
[BlackElo "2281"]
[Annotator "RC"]
[PlyCount "55"]
[EventDate "2023.10.03"]
[EventType "team-tourn"]
[EventCountry "SUI"]
[SourceTitle "playchess.com"]
[Source "ChessBase"]
[SourceQuality "1"]
[TimeControl "40/8400+30:20/3000+30:900+30"]

1. d4 {[%emt 0:40:03]} d5 {[%emt 0:40:20]} 2. c4 {[%emt 0:00:03]} c5 {[%emt 0:01:06]} 3. cxd5 {[%emt 0:08:06]} Qxd5 {[%emt 0:01:01]} 4. Nf3 {[%emt 0:02:27]} cxd4 {[%emt 0:00:24]} 5. Nc3 {[%emt 0:00:42]} Qa5 {[%emt 0:00:14]} 6. Nxd4 {[%emt 0:00:08]} a6 {[%emt 0:06:45]} 7. g3 {[%emt 0:03:23]} Nf6 {[%emt 0:00:43]} 8. Bg2 {[%emt 0:00:59]} e5 {[%emt 0:00:42]} 9. Nb3 {[%emt 0:00:47]} Qc7 {[%emt 0:00:08]} 10. O-O {[%emt 0:04:37]} Bb4 {[%emt 0:01:11]} 11. Bg5 {[%emt 0:04:09]} Bxc3 {[%emt 0:03:05]} 12. Rc1 {[%emt 0:05:33]} Nc6 {[%emt 0:00:12]} 13. Rxc3 {[%emt 0:00:49]} O-O {[%emt 0:03:41]} 14. Bxf6 {[%emt 0:04:12]} gxf6 {[%emt 0:00:02]} 15. e3 {[%emt 0:00:13]} Kg7 {[%emt 0:06:39]} 16. Qh5 {[%emt 0:06:05]} Qb6 {[%emt 0:09:41]} 17. Bxc6 {[%emt 0:08:38]} bxc6 {[%emt 0:00:20]} 18. Rfc1 {[%emt 0:00:27]} Be6 {[%emt 0:04:25]} 19. Rxc6 {[%emt 0:01:14]} Qb4 {[%emt 0:00:03]} 20. Rxe6 {[%emt 0:00:15]} Rac8 {[%emt 0:05:43]} 21. Rec6 {[%emt 0:00:21]} Rxc6 {[%emt 0:00:19]} 22. Rxc6 {[%emt 0:00:03]} Qa4 {[%emt 0:01:14]} 23. Qf3 {[%emt 0:01:16]} f5 {[%emt 0:00:35]} 24. Qd5 {[%emt 0:01:29]} Qxa2 {[%emt 0:01:40]} 25. Qxe5+ {[%emt 0:00:34]} f6 {[%emt 0:00:25]} 26. Rc7+ {[%emt 0:01:36]} Kg6 {[%emt 0:00:15]} 27. Qe7 {[%emt 0:01:00]} Qxb3 {[%emt 0:03:06]} 28. Qxh7+ {[%emt 0:00:21]} 1-0

[Event "Swiss National League-A 2024"]
[Site "Luzern"]
[Date "2024.10.13"]
[Round "9.30"]
[White "Cacciola, Alfredo"]
[Black "Toktomushev, Teimur"]
[Result "1/2-1/2"]
[ECO "B85"]
[WhiteElo "2165"]
[BlackElo "2246"]
[Annotator "RC"]
[PlyCount "117"]
[EventDate "2023.10.03"]
[EventType "team-tourn"]
[EventCountry "SUI"]
[SourceTitle "playchess.com"]
[Source "ChessBase"]
[SourceQuality "1"]
[TimeControl "40/8400+30:20/3000+30:900+30"]

1. e4 {[%emt 0:40:01]} c5 {[%emt 0:42:45]} 2. Nf3 {[%emt 0:00:15]} e6 {[%emt 0:00:15]} 3. d4 {[%emt 0:00:09]} cxd4 {[%emt 0:00:05]} 4. Nxd4 {[%emt 0:00:08]} a6 {[%emt 0:00:32]} 5. Be2 {[%emt 0:00:25]} Nf6 {[%emt 0:00:37]} 6. Nc3 {[%emt 0:00:09]} d6 {[%emt 0:00:34]} 7. O-O {[%emt 0:00:35]} Be7 {[%emt 0:00:10]} 8. f4 {[%emt 0:00:18]} O-O {[%emt 0:02:32]} 9. a4 {[%emt 0:00:17]} Qc7 {[%emt 0:15:09]} 10. Kh1 {[%emt 0:00:12]} Nc6 {[%emt 0:00:33]} 11. Be3 {[%emt 0:00:11]} Bd7 {[%emt 0:05:16]} 12. Qe1 {[%emt 0:00:24]} e5 {[%emt 0:19:21]} 13. fxe5 {[%emt 0:04:07]} dxe5 {[%emt 0:00:19]} 14. Qg3 {[%emt 0:05:03]} Kh8 {[%emt 0:00:33]} 15. Nf5 {[%emt 0:36:34]} Bxf5 {[%emt 0:00:18]} 16. Rxf5 {[%emt 0:00:10]} Rac8 {[%emt 0:29:44]} 17. Bd3 {[%emt 0:03:48]} g6 {[%emt 0:22:44]} 18. Rf2 {[%emt 0:02:10]} Kg7 {[%emt 0:06:24]} 19. Raf1 {[%emt 0:04:59]} Nh5 {[%emt 0:01:23]} 20. Qh3 {[%emt 0:00:59]} Nb4 {[%emt 0:00:33]} 21. g4 {[%emt 0:15:17]} Nf4 {[%emt 0:00:08]} 22. Rxf4 {[%emt 0:03:05]} exf4 {[%emt 0:00:03]} 23. Bxf4 {[%emt 0:00:07]} Bd6 {[%emt 0:01:28]} 24. Bh6+ {[%emt 0:01:20]} Kg8 {[%emt 0:00:09]} 25. Bxf8 {[%emt 0:00:59]} Rxf8 {[%emt 0:00:07]} 26. Nd5 {[%emt 0:13:20]} Nxd5 {[%emt 0:00:04]} 27. exd5 {[%emt 0:00:03]} Qa5 {[%emt 0:00:17]} 28. b3 {[%emt 0:02:26]} Qxd5+ {[%emt 0:00:07]} 29. Qg2 {[%emt 0:01:00]} Qe5 {[%emt 0:00:34]} 30. Bc4 {[%emt 0:00:57]} Kg7 {[%emt 0:01:03]} 31. Rf2 {[%emt 0:01:30]} b5 {[%emt 0:00:58]} 32. axb5 {[%emt 0:01:32]} axb5 {[%emt 0:00:03]} 33. Bd5 {[%emt 0:03:28]} Qd4 {[%emt 0:01:39]} 34. Rd2 {[%emt 0:05:14]} Qa1+ {[%emt 0:00:18]} 35. Qg1 {[%emt 0:00:13]} Qf6 {[%emt 0:00:42]} 36. c4 {[%emt 0:05:26]} bxc4 {[%emt 0:00:03]} 37. bxc4 {[%emt 0:00:25]} Bf4 {[%emt 0:00:56]} 38. Ra2 {[%emt 0:01:11]} Qe5 {[%emt 0:00:32]} 39. Ra7 {[%emt 0:00:59]} Be3 {[%emt 0:00:26]} 40. Qe1 {[%emt 0:00:26]} Qf4 {[%emt 0:00:28]} 41. Re7 {[%emt 0:50:36]} Bd4 {[%emt 0:06:15]} 42. Qe2 {[%emt 0:00:00]} Qc1+ {[%emt 0:02:58]} 43. Kg2 {[%emt 0:00:00]} Qg5 {[%emt 0:03:27]} 44. Qe6 {[%emt 0:00:00]} Kh6 {[%emt 0:07:50]} 45. Rxf7 {[%emt 0:00:00]} Rxf7 {[%emt 0:03:45]} 46. Qxf7 {[%emt 0:00:00]} Qxg4+ {[%emt 0:00:06]} 47. Kf1 {[%emt 0:00:00]} Qg1+ {[%emt 0:02:00]} 48. Ke2 {[%emt 0:00:00]} Qxh2+ {[%emt 0:00:38]} 49. Kd3 {[%emt 0:00:00]} Bc5 {[%emt 0:02:11]} 50. Qf3 {[%emt 0:00:00]} Qc7 {[%emt 0:12:22]} 51. Qh1+ {[%emt 0:00:00]} Kg7 {[%emt 0:00:13]} 52. Qa1+ {[%emt 0:00:00]} Kh6 {[%emt 0:00:14]} 53. Qh1+ {[%emt 0:00:00]} Kg5 {[%emt 0:00:31]} 54. Qg2+ {[%emt 0:00:00]} Kf6 {[%emt 0:03:49]} 55. Qf1+ {[%emt 0:00:00]} Kg5 {[%emt 0:00:45]} 56. Qg2+ {[%emt 0:00:00]} Kh4 {[%emt 0:00:21]} 57. Qh1+ {[%emt 0:00:00]} Kg4 {[%emt 0:03:23]} 58. Qf3+ {[%emt 0:00:00]} Kg5 {[%emt 0:00:26]} 59. Qg2+ {[%emt 0:00:00]} 1/2-1/2

[Event "Swiss National League-A 2024"]
[Site "Luzern"]
[Date "2024.10.13"]
[Round "9.31"]
[White "Colmenares, Aurelio"]
[Black "Salvetti, Manlio Alec"]
[Result "1-0"]
[ECO "C45"]
[WhiteElo "2331"]
[BlackElo "2129"]
[Annotator "RC"]
[PlyCount "53"]
[EventDate "2023.10.03"]
[EventType "team-tourn"]
[EventCountry "SUI"]
[SourceTitle "playchess.com"]
[Source "ChessBase"]
[SourceQuality "1"]
[TimeControl "40/8400+30:20/3000+30:900+30"]

1. e4 {[%emt 0:40:08]} e5 {[%emt 0:40:12]} 2. Nf3 {[%emt 0:00:06]} Nc6 {[%emt 0:00:10]} 3. d4 {[%emt 0:00:23]} exd4 {[%emt 0:00:22]} 4. Nxd4 {[%emt 0:00:10]} Bb4+ {[%emt 0:00:46]} 5. c3 {[%emt 0:00:07]} Be7 {[%emt 0:00:11]} 6. Nf5 {[%emt 0:01:58]} Bf6 {[%emt 0:00:42]} 7. Ne3 {[%emt 0:00:47]} g6 {[%emt 0:03:09]} 8. Bc4 {[%emt 0:05:59]} d6 {[%emt 0:01:43]} 9. O-O {[%emt 0:03:30]} Bg7 {[%emt 0:05:52]} 10. f4 {[%emt 0:01:57]} Nf6 {[%emt 0:03:58]} 11. Qf3 {[%emt 0:03:31]} O-O {[%emt 0:01:34]} 12. Nd2 {[%emt 0:04:38]} Re8 {[%emt 0:13:50]} 13. Bd3 {[%emt 0:14:09]} Nd7 {[%emt 0:13:50]} 14. Nb3 {[%emt 0:01:08]} a5 {[%emt 0:02:38]} 15. a4 {[%emt 0:01:23]} Nb6 {[%emt 0:00:42]} 16. Bd2 {[%emt 0:02:57]} Be6 {[%emt 0:01:35]} 17. Nd5 {[%emt 0:04:29]} Bxd5 {[%emt 0:00:38]} 18. exd5 {[%emt 0:00:38]} Ne7 {[%emt 0:00:16]} 19. f5 {[%emt 0:04:08]} Nexd5 {[%emt 0:03:02]} 20. fxg6 {[%emt 0:03:53]} fxg6 {[%emt 0:00:51]} 21. Bxg6 {[%emt 0:02:13]} hxg6 {[%emt 0:05:41]} 22. Qf7+ {[%emt 0:00:58]} Kh7 {[%emt 0:00:28]} 23. Rf3 {[%emt 0:02:05]} Re4 {[%emt 0:05:11]} 24. Re1 {[%emt 0:01:41]} Rxe1+ {[%emt 0:05:48]} 25. Bxe1 {[%emt 0:00:17]} Nf6 {[%emt 0:00:32]} 26. Bh4 {[%emt 0:03:29]} Nbd7 {[%emt 0:01:25]} 27. Rh3 {[%emt 0:01:03]} 1-0

[Event "Swiss National League-A 2024"]
[Site "Luzern"]
[Date "2024.10.13"]
[Round "9.32"]
[White "Levacic, Damir"]
[Black "Gerber, Richard"]
[Result "1/2-1/2"]
[ECO "A84"]
[WhiteElo "2095"]
[BlackElo "2244"]
[Annotator "RC"]
[PlyCount "44"]
[EventDate "2023.10.03"]
[EventType "team-tourn"]
[EventCountry "SUI"]
[SourceTitle "playchess.com"]
[Source "ChessBase"]
[SourceQuality "1"]
[TimeControl "40/8400+30:20/3000+30:900+30"]

1. d4 {[%emt 0:40:30]} f5 {[%emt 0:41:04]} 2. c4 {[%emt 0:01:25]} d6 {[%emt 0:00:54]} 3. Nf3 {[%emt 0:02:26]} Nf6 {[%emt 0:01:41]} 4. e3 {[%emt 0:04:31]} g6 {[%emt 0:01:08]} 5. Be2 {[%emt 0:00:06]} Bg7 {[%emt 0:00:06]} 6. O-O {[%emt 0:00:23]} O-O {[%emt 0:00:16]} 7. b4 {[%emt 0:00:32]} e5 {[%emt 0:02:22]} 8. dxe5 {[%emt 0:00:50]} Nfd7 {[%emt 0:02:50]} 9. Bb2 {[%emt 0:03:30]} Nc6 {[%emt 0:08:18]} 10. Qb3 {[%emt 0:05:01]} dxe5 {[%emt 0:05:11]} 11. Rd1 {[%emt 0:06:47]} e4 {[%emt 0:13:04]} 12. c5+ {[%emt 0:04:01]} Kh8 {[%emt 0:00:42]} 13. Nd4 {[%emt 0:11:35]} Qf6 {[%emt 0:10:11]} 14. Nc3 {[%emt 0:03:02]} Nxd4 {[%emt 0:05:08]} 15. exd4 {[%emt 0:05:37]} c6 {[%emt 0:02:34]} 16. d5 {[%emt 0:02:21]} Qh4 {[%emt 0:08:14]} 17. dxc6 {[%emt 0:08:12]} bxc6 {[%emt 0:02:02]} 18. g3 {[%emt 0:04:45]} Qh3 {[%emt 0:03:17]} 19. Bf1 {[%emt 0:02:15]} Qh5 {[%emt 0:00:31]} 20. Be2 {[%emt 0:02:28]} Qh3 {[%emt 0:00:17]} 21. Bf1 {[%emt 0:00:23]} Qh5 {[%emt 0:00:07]} 22. Be2 {[%emt 0:00:04]} Qh3 {[%emt 0:00:12]} 1/2-1/2